fUSD/lending_fUSD_20240619
["ID","MTS","AMOUNT","RATE_DAILY","PERIOD"]
[329889842,1718797848894,-102.43583825,0.00013698,2]
[329889843,1718797849787,-531.405,0.0001356,2]
[329889850,1718798023199,150.0,9.844e-05,2]
[329889851,1718798023221,19.71,9.844e-05,2]
[329889853,1718798062631,2556.09597303,7.383e-05,2]
[329889855,1718798074538,500.0,0.00025,60]
[329889856,1718798078304,150.0,7.383e-05,2]
[329889857,1718798078326,150.0,7.383e-05,2]
[329889858,1718798078349,150.0,7.383e-05,2]
[329889859,1718798078370,150.0,7.383e-05,2]
[329889860,1718798078392,150.0,7.383e-05,2]
[329889861,1718798078413,25.40685908,7.383e-05,2]
[329889863,1718798091474,150.0,9.844e-05,2]
[329889864,1718798091497,150.0,9.844e-05,2]
[329889865,1718798091519,150.0,9.844e-05,2]
[329889866,1718798091541,150.0,9.844e-05,2]
[329889867,1718798091564,150.0,9.844e-05,2]
[329889868,1718798091586,150.0,9.844e-05,2]
[329889869,1718798091610,150.0,9.844e-05,2]
[329889870,1718798091634,16235.80269398,9.844e-05,2]
[329889873,1718798109754,150.0,7.383e-05,2]
[329889874,1718798109779,150.0,7.383e-05,2]
[329889875,1718798109803,150.0,7.383e-05,2]
[329889876,1718798109825,150.0,7.383e-05,2]
[329889877,1718798109849,150.0,7.383e-05,2]
[329889878,1718798109872,150.0,7.383e-05,2]
[329889879,1718798109894,150.0,7.383e-05,2]
[329889881,1718798127329,150.0,7.383e-05,2]
[329889882,1718798127354,150.0,7.383e-05,2]
[329889883,1718798127376,150.0,7.383e-05,2]
[329889884,1718798127398,150.0,7.383e-05,2]
[329889885,1718798127421,150.0,7.383e-05,2]
[329889886,1718798127448,150.0,7.383e-05,2]
[329889887,1718798129075,-260.05177364,0.00010167,2]
[329889888,1718798129768,260.05177364,0.00010167,2]
[329889889,1718798131282,-286.94822636,0.00010167,2]
[329889890,1718798132994,-532.14539917,0.00010168,2]
[329889891,1718798138024,150.0,0.0001,2]
[329889892,1718798138049,149.97320991,0.0001,2]
[329889894,1718798153292,150.0,0.0001,2]
[329889895,1718798153314,140.10514488,0.0001,2]
[329889901,1718798414797,150.0,9.844e-05,2]
[329889902,1718798414819,150.0,9.844e-05,2]
[329889903,1718798414842,150.0,9.844e-05,2]
[329889904,1718798414863,50.0,9.844e-05,2]
[329889905,1718798415234,100.0,9.844e-05,2]
[329889906,1718798415258,150.0,9.844e-05,2]
[329889907,1718798415285,150.0,9.844e-05,2]
[329889908,1718798415307,100.0,9.844e-05,2]
[329889909,1718798415590,50.0,9.844e-05,2]
[329889910,1718798415612,150.0,9.844e-05,2]
[329889911,1718798415635,150.0,9.844e-05,2]
[329889912,1718798415657,150.0,9.844e-05,2]
[329889913,1718798416030,150.0,9.844e-05,2]
[329889914,1718798416055,150.0,9.844e-05,2]
[329889915,1718798416077,150.0,9.844e-05,2]
[329889916,1718798416101,50.0,9.844e-05,2]
[329889917,1718798416478,100.0,9.844e-05,2]
[329889918,1718798416500,150.0,9.844e-05,2]
[329889919,1718798416523,150.0,9.844e-05,2]
[329889920,1718798416545,150.0,9.844e-05,2]
[329889921,1718798416566,150.0,9.844e-05,2]
[329889922,1718798416587,150.0,9.844e-05,2]
[329889923,1718798416608,136.0,9.844e-05,2]
[329889925,1718798527733,14.0,9.882e-05,2]
[329889926,1718798527756,150.0,9.882e-05,2]
[329889927,1718798527779,269.74514528,9.882e-05,2]
[329889928,1718798527803,150.0,9.882e-05,2]
[329889929,1718798527825,150.0,9.882e-05,2]
[329889930,1718798527847,60.83485472,9.882e-05,2]
[329889931,1718798537015,89.16514528,9.426e-05,2]
[329889932,1718798537038,75.41485472,9.426e-05,2]
[329889933,1718798597784,150.0,0.00024,30]
[329889954,1718799010895,152.073045,0.00013999,7]
[329889961,1718799032992,-1262.49708637,0.00011572,2]
[329889962,1718799033004,-254.00234334,0.00011572,2]
[329889963,1718799033018,-253.77976892,0.00011572,2]
[329889964,1718799033032,-155.0,0.00011573,2]
[329889965,1718799033045,-155.0,0.00011573,2]
[329889966,1718799033055,-297.95,0.00011574,2]
[329889967,1718799033066,-689.75981342,0.00011673,2]
[329889968,1718799033076,-3595.49554302,0.00011674,2]
[329889997,1718799038328,-539.00383144,0.00011674,2]
[329889998,1718799038355,-955.79395571,0.00011674,2]
[329889999,1718799038380,-4143.49144184,0.00011674,2]
[329890000,1718799038391,-150.0,0.00011677,2]
[329890001,1718799038402,-1764.04916849,0.00011678,2]
[329890002,1718799038412,-3623.4,0.00011688,2]
[329890003,1718799038422,-1000.0,0.00011721,2]
[329890004,1718799038432,-2194.78,0.00011722,2]
[329890005,1718799038443,-150.99,0.00011722,2]
[329890006,1718799038452,-1852.42,0.00011729,2]
[329890007,1718799038465,-388.56,0.00011729,2]
[329890008,1718799038475,-500.0,0.00011733,2]
[329890009,1718799038486,-150.0,0.00011744,2]
[329890010,1718799038497,-162.41,0.00011744,2]
[329890011,1718799038507,-1165.95,0.00011744,2]
[329890012,1718799038519,-499.99,0.00011744,2]
[329890013,1718799038529,-3061.65730194,0.0001177,2]
[329890014,1718799038540,-161.05154284,0.00011771,2]
[329890015,1718799038550,-250.0,0.00011773,2]
[329890016,1718799038560,-236.56,0.00011873,2]
[329890017,1718799038569,-337.57,0.00011877,2]
[329890018,1718799038579,-5967.59,0.00011988,2]
[329890019,1718799038588,-23900.0,0.00011996,2]
[329890020,1718799038598,-162.91,0.00012086,2]
[329890021,1718799038608,-794.58,0.00012146,2]
[329890022,1718799038618,-150.99,0.00012167,2]
[329890023,1718799038628,-453.76515583,0.00012189,2]
[329890024,1718799038638,-182.36,0.00012206,2]
[329890026,1718799038648,-1131.48277705,0.00012206,2]
[329890031,1718799038689,-103.60722295,0.00012206,2]
[329890033,1718799038699,-250.0,0.00012206,2]
[329890035,1718799038709,-1225.82,0.00012206,2]
[329890037,1718799038720,-162.91,0.00012296,2]
[329890039,1718799038729,-1097.01251191,0.00012304,2]
[329890046,1718799039565,-3594.05748809,0.00012304,2]
[329890047,1718799039575,-255.9577547,0.00012326,2]
[329890048,1718799039585,-539.53348174,0.00012497,2]
[329890049,1718799039597,-1133.62744583,0.00012497,2]
[329890050,1718799039610,-1886.27607243,0.00012497,2]
[329890051,1718799039620,-162.91,0.00012506,2]
[329890052,1718799039630,-162.91,0.00012716,2]
[329890053,1718799039642,-210.0,0.00012844,2]
[329890054,1718799039652,-513.28850771,0.00013148,2]
[329890055,1718799039662,-172.42,0.00013173,2]
[329890056,1718799039672,-423.1,0.00013178,2]
[329890057,1718799039683,-150.0,0.00013178,2]
[329890058,1718799039693,-823.47,0.00013178,2]
[329890059,1718799039703,-1000.0,0.00013187,2]
[329890060,1718799039712,-182.05662154,0.00013215,2]
[329890061,1718799039722,-617.0,0.00013311,2]
[329890062,1718799039732,-165.0,0.00013311,2]
[329890063,1718799039742,-1653.0,0.00013311,2]
[329890064,1718799039753,-812.0,0.00013311,2]
[329890065,1718799039766,-150.0,0.00013311,2]
[329890066,1718799039776,-2410.0,0.00013311,2]
[329890067,1718799039786,-447.0,0.00013311,2]
[329890068,1718799039796,-193.41665945,0.00013311,2]
[329890069,1718799039808,-698.21268613,0.00013311,2]
[329890070,1718799040524,-411.37065442,0.00013311,2]
[329890071,1718799040535,-103.28161249,0.00013311,2]
[329890072,1718799040630,-1878.71838751,0.00013311,2]
[329890073,1718799040639,-547.0,0.00013311,2]
[329890074,1718799040649,-3198.0,0.00013311,2]
[329890075,1718799040659,-1196.0,0.00013315,2]
[329890076,1718799040669,-5164.0,0.00013315,2]
[329890077,1718799040680,-5795.0,0.00013315,2]
[329890078,1718799040691,-290.0,0.00013315,2]
[329890079,1718799040700,-1659.0,0.00013315,2]
[329890080,1718799040710,-38133.0,0.00013315,2]
[329890081,1718799040720,-828.596,0.00013315,2]
[329890082,1718799040729,-1036.05890597,0.00013424,2]
[329890083,1718799040739,-260.80888804,0.0001356,2]
[329890084,1718799040749,-2500.0,0.00013587,2]
[329890085,1718799040759,-475.62826565,0.00013588,2]
[329890086,1718799040775,-24.37173435,0.00013588,2]
[329890087,1718799040785,-172.28575094,0.00013598,2]
[329890088,1718799040795,-2061.03399925,0.00013598,2]
[329890089,1718799040821,-155.89938966,0.00013598,2]
[329890090,1718799040831,-169.24790698,0.00013598,2]
[329890091,1718799040840,-190.78688611,0.00013598,2]
[329890092,1718799040856,-483.73499994,0.00013598,2]
[329890093,1718799040880,-1704.21971395,0.00013598,2]
[329890094,1718799040890,-10000.0,0.00013598,2]
[329890095,1718799040900,-1000.0,0.00013598,2]
[329890096,1718799040910,-1000.0,0.00013598,2]
[329890097,1718799040920,-156.0208,0.00013598,2]
[329890098,1718799040930,-2216.93338891,0.00013641,2]
[329890099,1718799040939,-304.58,0.00013671,2]
[329890100,1718799040949,-2216.93338891,0.00013684,2]
[329890101,1718799040958,-4498.4797198,0.00013687,2]
[329890102,1718799040967,-1126.3478752,0.00013687,2]
[329890103,1718799040977,-14360.6030278,0.00013687,2]
[329890104,1718799040986,-1076.2106556,0.00013687,2]
[329890105,1718799040996,-17803.1528712,0.00013687,2]
[329890106,1718799041006,-747.53622473,0.00013687,2]
[329890107,1718799041018,-5346.4051817,0.00013687,2]
[329890108,1718799041028,-312.14497506,0.00013696,2]
[329890109,1718799041038,-364.50139533,0.00013696,2]
[329890110,1718799041048,-435.37223481,0.00013696,2]
[329890111,1718799041058,-307.70579132,0.00013696,2]
[329890112,1718799041067,-906.29219805,0.00013696,2]
[329890113,1718799041077,-259.93969938,0.00013696,2]
[329890114,1718799041087,-166.95903437,0.00013696,2]
[329890115,1718799041097,-155.0,0.00013696,2]
[329890116,1718799041108,-178.4410572,0.00013696,2]
[329890117,1718799041118,-184.23983074,0.00013696,2]
[329890118,1718799041128,-233.25177335,0.00013696,2]
[329890119,1718799041138,-155.15183143,0.00013696,2]
[329890120,1718799041147,-155.0,0.00013696,2]
[329890121,1718799041157,-155.0,0.00013696,2]
[329890122,1718799041167,-1491.5398984,0.00013696,2]
[329890123,1718799041176,-155.0,0.00013696,2]
[329890124,1718799041186,-205.87538729,0.00013696,2]
[329890125,1718799041195,-171.14632606,0.00013696,2]
[329890126,1718799041205,-536.63326235,0.00013696,2]
[329890127,1718799041215,-156.15243361,0.00013696,2]
[329890128,1718799041224,-155.48493369,0.00013696,2]
[329890129,1718799041234,-400.0,0.00013696,2]
[329890130,1718799041243,-155.61383732,0.00013696,2]
[329890131,1718799041253,-260.14969028,0.00013696,2]
[329890132,1718799041266,-186.7008312,0.00013696,2]
[329890133,1718799041275,-157.15925098,0.00013696,2]
[329890134,1718799041285,-155.27296682,0.00013696,2]
[329890135,1718799041295,-155.42938912,0.00013696,2]
[329890136,1718799041305,-155.01014188,0.00013696,2]
[329890137,1718799041315,-1414.76148748,0.00013696,2]
[329890138,1718799041325,-155.0,0.00013696,2]
[329890139,1718799041336,-3017.04643973,0.00013696,2]
[329890140,1718799041346,-327.03263673,0.00013696,2]
[329890141,1718799041356,-155.0,0.00013696,2]
[329890142,1718799041366,-436.69232455,0.00013696,2]
[329890143,1718799041376,-377.96079445,0.00013696,2]
[329890144,1718799041386,-2002.52367702,0.00013696,2]
[329890145,1718799041395,-291.93341729,0.00013696,2]
[329890146,1718799041405,-155.0,0.00013696,2]
[329890147,1718799041414,-339.26501346,0.00013696,2]
[329890148,1718799041424,-543.46593808,0.00013696,2]
[329890149,1718799041433,-150.0,0.00013696,2]
[329890150,1718799041443,-238.454,0.00013696,2]
[329890151,1718799041456,-150.784,0.00013696,2]
[329890152,1718799041466,-1830.0,0.00013696,2]
[329890153,1718799041475,-359.0,0.00013696,2]
[329890154,1718799041485,-1271.0,0.00013696,2]
[329890155,1718799041495,-155.0,0.00013697,2]
[329890156,1718799041506,-174.54429719,0.00013697,2]
[329890157,1718799041518,-614.04071162,0.00013697,2]
[329890158,1718799041529,-1251.25964047,0.00013697,2]
[329890159,1718799041543,-209.23301289,0.00013697,2]
[329890160,1718799041553,-5903.55757461,0.00013697,2]
[329890161,1718799041563,-748.1,0.00013698,2]
[329890162,1718799041572,-500.0,0.00013698,2]
[329890163,1718799041582,-707.84,0.00013698,2]
[329890164,1718799041592,-828.07,0.00013698,2]
[329890165,1718799041602,-617.83,0.00013698,2]
[329890166,1718799041611,-743.29,0.00013698,2]
[329890167,1718799041621,-500.0,0.00013698,2]
[329890168,1718799041631,-160.70295504,0.00013698,2]
[329890169,1718799041640,-500.0,0.00013698,2]
[329890170,1718799041650,-500.0,0.00013698,2]
[329890171,1718799041659,-500.0,0.00013698,2]
[329890172,1718799041668,-631.04,0.00013698,2]
[329890173,1718799041678,-567.0,0.00013698,2]
[329890174,1718799041688,-500.0,0.00013698,2]
[329890175,1718799041699,-500.0,0.00013698,2]
[329890176,1718799041708,-437.73629518,0.00013698,2]
[329890177,1718799041718,-500.0,0.00013698,2]
[329890178,1718799041728,-500.0,0.00013698,2]
[329890179,1718799041738,-525.53,0.00013698,2]
[329890180,1718799041748,-500.0,0.00013698,2]
[329890181,1718799041757,-1021.11,0.00013698,2]
[329890182,1718799041768,-1158.68,0.00013698,2]
[329890183,1718799041777,-500.0,0.00013698,2]
[329890184,1718799041788,-500.0,0.00013698,2]
[329890185,1718799041799,-670.31,0.00013698,2]
[329890186,1718799041808,-500.0,0.00013698,2]
[329890187,1718799041817,-543.7,0.00013698,2]
[329890188,1718799041827,-574.57,0.00013698,2]
[329890189,1718799041837,-500.0,0.00013698,2]
[329890190,1718799041846,-569.59,0.00013698,2]
[329890191,1718799041856,-500.0,0.00013698,2]
[329890192,1718799041864,-500.0,0.00013698,2]
[329890193,1718799041873,-500.0,0.00013698,2]
[329890194,1718799041883,-502.89,0.00013698,2]
[329890195,1718799041893,-500.0,0.00013698,2]
[329890196,1718799041903,-500.0,0.00013698,2]
[329890197,1718799041912,-500.0,0.00013698,2]
[329890198,1718799041921,-500.0,0.00013698,2]
[329890199,1718799041931,-678.8,0.00013698,2]
[329890200,1718799041942,-507.81,0.00013698,2]
[329890201,1718799041951,-500.0,0.00013698,2]
[329890202,1718799041961,-744.23,0.00013698,2]
[329890203,1718799041971,-627.81,0.00013698,2]
[329890204,1718799041980,-500.0,0.00013698,2]
[329890205,1718799041990,-700.71,0.00013698,2]
[329890206,1718799042000,-601.36,0.00013698,2]
[329890207,1718799042009,-500.0,0.00013698,2]
[329890208,1718799042020,-968.96,0.00013698,2]
[329890209,1718799042030,-500.0,0.00013698,2]
[329890210,1718799042039,-500.0,0.00013698,2]
[329890211,1718799042050,-567.33,0.00013698,2]
[329890212,1718799042059,-913.19,0.00013698,2]
[329890213,1718799042068,-500.0,0.00013698,2]
[329890214,1718799042078,-500.0,0.00013698,2]
[329890215,1718799042087,-988.9,0.00013698,2]
[329890216,1718799042097,-500.0,0.00013698,2]
[329890217,1718799042108,-500.0,0.00013698,2]
[329890218,1718799042119,-500.0,0.00013698,2]
[329890219,1718799042128,-500.0,0.00013698,2]
[329890220,1718799042138,-500.0,0.00013698,2]
[329890221,1718799042148,-500.0,0.00013698,2]
[329890222,1718799042158,-500.0,0.00013698,2]
[329890223,1718799042168,-538.4,0.00013698,2]
[329890224,1718799042179,-500.0,0.00013698,2]
[329890225,1718799042188,-500.0,0.00013698,2]
[329890226,1718799042198,-500.0,0.00013698,2]
[329890227,1718799042210,-755.2,0.00013698,2]
[329890228,1718799042221,-500.0,0.00013698,2]
[329890229,1718799042231,-500.0,0.00013698,2]
[329890230,1718799042240,-500.0,0.00013698,2]
[329890231,1718799042250,-851.19,0.00013698,2]
[329890232,1718799042260,-618.27,0.00013698,2]
[329890233,1718799042271,-380.86708987,0.00013698,2]
[329890234,1718799042280,-874.36,0.00013698,2]
[329890235,1718799042289,-500.0,0.00013698,2]
[329890236,1718799042299,-500.0,0.00013698,2]
[329890237,1718799042309,-500.0,0.00013698,2]
[329890238,1718799042320,-500.0,0.00013698,2]
[329890239,1718799042331,-500.0,0.00013698,2]
[329890240,1718799042340,-500.0,0.00013698,2]
[329890241,1718799042351,-513.21,0.00013698,2]
[329890242,1718799042361,-604.04,0.00013698,2]
[329890243,1718799042372,-653.09,0.00013698,2]
[329890244,1718799042383,-302.66030295,0.00013698,2]
[329890245,1718799042392,-655.52,0.00013698,2]
[329890246,1718799042401,-500.0,0.00013698,2]
[329890247,1718799042411,-500.0,0.00013698,2]
[329890248,1718799042422,-503.25567314,0.00013698,2]
[329890249,1718799042432,-500.0,0.00013698,2]
[329890250,1718799042441,-500.0,0.00013698,2]
[329890251,1718799042451,-586.84400383,0.00013698,2]
[329890252,1718799042464,-500.0,0.00013698,2]
[329890253,1718799042474,-500.0,0.00013698,2]
[329890254,1718799042483,-500.0,0.00013698,2]
[329890255,1718799042493,-502.45397524,0.00013698,2]
[329890256,1718799042503,-666.75,0.00013698,2]
[329890257,1718799042513,-1361.77,0.00013698,2]
[329890258,1718799042523,-500.0,0.00013698,2]
[329890259,1718799042532,-906.35,0.00013698,2]
[329890260,1718799042544,-502.73601148,0.00013698,2]
[329890261,1718799042554,-500.0,0.00013698,2]
[329890262,1718799042564,-500.0,0.00013698,2]
[329890263,1718799042574,-500.0,0.00013698,2]
[329890264,1718799042584,-500.0,0.00013698,2]
[329890265,1718799042593,-5000.0,0.00013698,2]
[329890266,1718799042604,-500.0,0.00013698,2]
[329890267,1718799042615,-1359.32,0.00013698,2]
[329890268,1718799042624,-871.43,0.00013698,2]
[329890269,1718799042634,-500.0,0.00013698,2]
[329890270,1718799042644,-752.84,0.00013698,2]
[329890271,1718799042653,-500.0,0.00013698,2]
[329890272,1718799042662,-809.88,0.00013698,2]
[329890273,1718799042671,-2381.19,0.00013698,2]
[329890274,1718799042680,-500.0,0.00013698,2]
[329890275,1718799042690,-500.0,0.00013698,2]
[329890276,1718799042701,-1168.83,0.00013698,2]
[329890277,1718799042711,-500.0,0.00013698,2]
[329890278,1718799042720,-575.38,0.00013698,2]
[329890279,1718799042730,-1740.57,0.00013698,2]
[329890280,1718799042739,-819.62,0.00013698,2]
[329890281,1718799042750,-937.13,0.00013698,2]
[329890282,1718799042759,-500.0,0.00013698,2]
[329890283,1718799042770,-2131.91,0.00013698,2]
[329890284,1718799042779,-1827.98,0.00013698,2]
[329890285,1718799042788,-500.0,0.00013698,2]
[329890286,1718799042798,-500.0,0.00013698,2]
[329890287,1718799042808,-500.0,0.00013698,2]
[329890288,1718799042819,-899.78,0.00013698,2]
[329890289,1718799042828,-1034.32,0.00013698,2]
[329890290,1718799042838,-748.64,0.00013698,2]
[329890291,1718799042848,-500.0,0.00013698,2]
[329890292,1718799042858,-690.06,0.00013698,2]
[329890293,1718799042868,-500.0,0.00013698,2]
[329890294,1718799042877,-1606.02,0.00013698,2]
[329890295,1718799042886,-1328.38,0.00013698,2]
[329890296,1718799042897,-1238.15,0.00013698,2]
[329890297,1718799042907,-555.89339514,0.00013698,2]
[329890298,1718799042917,-786.86,0.00013698,2]
[329890299,1718799042928,-500.0,0.00013698,2]
[329890300,1718799042937,-500.0,0.00013698,2]
[329890301,1718799042947,-500.0,0.00013698,2]
[329890302,1718799042956,-500.0,0.00013698,2]
[329890303,1718799042965,-500.0,0.00013698,2]
[329890304,1718799042976,-500.0,0.00013698,2]
[329890305,1718799042987,-500.0,0.00013698,2]
[329890306,1718799042996,-500.0,0.00013698,2]
[329890307,1718799043005,-534.14,0.00013698,2]
[329890308,1718799043014,-500.0,0.00013698,2]
[329890309,1718799043024,-500.0,0.00013698,2]
[329890310,1718799043035,-1130.17,0.00013698,2]
[329890311,1718799043044,-1489.88,0.00013698,2]
[329890312,1718799043055,-500.0,0.00013698,2]
[329890313,1718799043066,-500.0,0.00013698,2]
[329890314,1718799043075,-500.0,0.00013698,2]
[329890316,1718799043084,-815.68,0.00013698,2]
[329890317,1718799043094,-600.39070288,0.00013698,2]
[329890318,1718799043104,-1075.5,0.00013698,2]
[329890319,1718799043114,-1436.81,0.00013698,2]
[329890320,1718799043125,-500.0,0.00013698,2]
[329890321,1718799043135,-1438.36,0.00013698,2]
[329890323,1718799043144,-500.0,0.00013698,2]
[329890324,1718799043154,-159.15563279,0.00013698,2]
[329890325,1718799043164,-560.78,0.00013698,2]
[329890327,1718799043174,-921.7,0.00013698,2]
[329890330,1718799043183,-500.0,0.00013698,2]
[329890333,1718799043193,-1019.97,0.00013698,2]
[329890336,1718799043203,-500.0,0.00013698,2]
[329890339,1718799043212,-755.78,0.00013698,2]
[329890342,1718799043222,-668.06,0.00013698,2]
[329890344,1718799043231,-500.0,0.00013698,2]
[329890345,1718799043241,-500.0,0.00013698,2]
[329890346,1718799043250,-500.0,0.00013698,2]
[329890347,1718799043260,-500.0,0.00013698,2]
[329890349,1718799043271,-575.86,0.00013698,2]
[329890351,1718799043280,-500.0,0.00013698,2]
[329890352,1718799043289,-500.0,0.00013698,2]
[329890354,1718799043299,-500.0,0.00013698,2]
[329890358,1718799043309,-500.0,0.00013698,2]
[329890361,1718799043318,-1292.84,0.00013698,2]
[329890365,1718799043327,-1503.09,0.00013698,2]
[329890369,1718799043337,-500.0,0.00013698,2]
[329890372,1718799043346,-661.37,0.00013698,2]
[329890375,1718799043355,-500.0,0.00013698,2]
[329890378,1718799043365,-1210.61,0.00013698,2]
[329890380,1718799043374,-500.0,0.00013698,2]
[329890383,1718799043383,-500.0,0.00013698,2]
[329890386,1718799043393,-500.0,0.00013698,2]
[329890388,1718799043402,-293.46140939,0.00013698,2]
[329890389,1718799043411,-1280.48,0.00013698,2]
[329890390,1718799043421,-500.0,0.00013698,2]
[329890391,1718799043431,-500.0,0.00013698,2]
[329890392,1718799043441,-2089.29,0.00013698,2]
[329890394,1718799043455,-500.0,0.00013698,2]
[329890396,1718799043465,-1620.19,0.00013698,2]
[329890398,1718799043475,-971.87,0.00013698,2]
[329890400,1718799043484,-500.0,0.00013698,2]
[329890402,1718799043494,-500.0,0.00013698,2]
[329890404,1718799043505,-500.0,0.00013698,2]
[329890406,1718799043516,-500.0,0.00013698,2]
[329890408,1718799043526,-645.94,0.00013698,2]
[329890410,1718799043538,-500.0,0.00013698,2]
[329890412,1718799043549,-500.0,0.00013698,2]
[329890414,1718799043559,-500.0,0.00013698,2]
[329890416,1718799043568,-500.0,0.00013698,2]
[329890418,1718799043578,-922.08,0.00013698,2]
[329890420,1718799043588,-1013.09,0.00013698,2]
[329890422,1718799043598,-500.0,0.00013698,2]
[329890424,1718799043608,-500.0,0.00013698,2]
[329890426,1718799043617,-500.0,0.00013698,2]
[329890428,1718799043628,-1687.09,0.00013698,2]
[329890430,1718799043637,-500.0,0.00013698,2]
[329890432,1718799043647,-1476.65,0.00013698,2]
[329890434,1718799043656,-598.4460967,0.00013698,2]
[329890436,1718799043666,-552.49173241,0.00013698,2]
[329890438,1718799043676,-463.47025983,0.00013698,2]
[329890440,1718799043686,-500.0,0.00013698,2]
[329890442,1718799043696,-1746.15,0.00013698,2]
[329890444,1718799043705,-557.90407713,0.00013698,2]
[329890446,1718799043715,-1927.12,0.00013698,2]
[329890448,1718799043725,-500.0,0.00013698,2]
[329890449,1718799043734,-566.41389407,0.00013698,2]
[329890450,1718799043743,-500.0,0.00013698,2]
[329890451,1718799043753,-1758.29,0.00013698,2]
[329890452,1718799043763,-500.0,0.00013698,2]
[329890453,1718799043774,-500.0,0.00013698,2]
[329890454,1718799043784,-1222.14,0.00013698,2]
[329890455,1718799043794,-157.18640589,0.00013698,2]
[329890456,1718799043803,-500.0,0.00013698,2]
[329890457,1718799043813,-508.40529224,0.00013698,2]
[329890458,1718799043823,-500.0,0.00013698,2]
[329890459,1718799043832,-960.76,0.00013698,2]
[329890460,1718799043843,-770.03,0.00013698,2]
[329890461,1718799043852,-1674.0,0.00013698,2]
[329890462,1718799043862,-921.23,0.00013698,2]
[329890463,1718799043871,-500.0,0.00013698,2]
[329890464,1718799043882,-1639.42,0.00013698,2]
[329890467,1718799043891,-529.88,0.00013698,2]
[329890469,1718799043901,-239.16152221,0.00013698,2]
[329890472,1718799043910,-500.0,0.00013698,2]
[329890475,1718799043920,-681.38318546,0.00013698,2]
[329890477,1718799043929,-500.0,0.00013698,2]
[329890479,1718799043938,-854.7,0.00013698,2]
[329890480,1718799043948,-802.51,0.00013698,2]
[329890481,1718799043958,-500.0,0.00013698,2]
[329890482,1718799043968,-792.07,0.00013698,2]
[329890483,1718799043977,-500.0,0.00013698,2]
[329890484,1718799043987,-500.0,0.00013698,2]
[329890485,1718799043997,-517.29879142,0.00013698,2]
[329890486,1718799044007,-500.0,0.00013698,2]
[329890487,1718799044017,-500.0,0.00013698,2]
[329890488,1718799044027,-500.0,0.00013698,2]
[329890489,1718799044036,-500.0,0.00013698,2]
[329890490,1718799044046,-1000.0,0.00013698,5]
[329890491,1718799044056,-500.0,0.00013698,2]
[329890492,1718799044066,-500.0,0.00013698,2]
[329890493,1718799044076,-500.0,0.00013698,2]
[329890494,1718799044085,-500.0,0.00013698,2]
[329890495,1718799044094,-500.0,0.00013698,2]
[329890496,1718799044105,-172.84122269,0.00013698,2]
[329890497,1718799044114,-1579.26,0.00013698,2]
[329890498,1718799044124,-955.52,0.00013698,2]
[329890499,1718799044134,-500.0,0.00013698,2]
[329890500,1718799044143,-500.0,0.00013698,2]
[329890501,1718799044152,-532.98614121,0.00013698,2]
[329890502,1718799044162,-566.01205577,0.00013698,2]
[329890503,1718799044172,-513.29891264,0.00013698,2]
[329890504,1718799044181,-533.29444136,0.00013698,2]
[329890505,1718799044190,-500.0,0.00013698,2]
[329890506,1718799044200,-500.0,0.00013698,2]